Cogmind - Beta 9.6 @@@ ROGUE MODE // 2020.09.04 @ 17:44:53 Player: Enzo Result: Self-destructed Performance ------------- Evolutions (4) 2000 Regions Visited (12) 2400 Robots Destroyed (165) 825 Value Destroyed (4294) 4294 Prototype IDs (38) 760 Alien Tech Used (0) 0 Bonus (2065) 2065 TOTAL SCORE: 12344 Bonus ------- High Alert Combat Kills 98 Follower Combat Kills 346 Entered Garrisons 400 Used RIF Installer 1000 Aligned with FarCom 300 Friendly Fire -79 Cogmind --------- Core Integrity 828/850 Matter 240/300 Energy 62/280 System Corruption 0% Temperature Cool (0) Movement Hovering (42) Location -6/Factory Parts ------- > --- POWER (1) -------- Cooled Ion Engine > --- PROPULSION (4) --- Aerolev Unit Aerolev Unit Aerolev Unit Aerolev Unit > --- UTILITY (7) ------ Lightpack 2.0 Advanced Terrain Scan Processor Launcher Guidance Computer Relay Coupler [NC] (28) Relay Coupler [Grunt] (35) Relay Coupler [Hunter] (14) > --- WEAPON (3) ------- Shock Bomb Launcher Mini Grenade Launcher Remote Datajack > --- INVENTORY (24) --- Improved Deuterium Engine Airjet Aerolev Unit Gravmag System Gravmag System Improved Airjet Coolant Injector Experimental Signal Interpreter Improved Terrain Scanner Long-range Terrain Scanner Transmission Jammer ECM Suite Layered Light Armor Plating Relay Coupler [Swarmer] (43) Relay Coupler [Swarmer] (43) System Backup Module EM Pulse Cannon EM Pulse Cannon Advanced Beam Cannon Gauss Cannon Faulty Precision Grenade Launcher Remote Datajack Peak State ------------ > --- POWER ------------ Cooled Ion Engine > --- PROPULSION ------- Aerolev Unit Aerolev Unit Aerolev Unit Aerolev Unit > --- UTILITY ---------- Lightpack 2.0 Advanced Terrain Scan Processor Launcher Guidance Computer Relay Coupler [NC] Relay Coupler [Grunt] Relay Coupler [Hunter] > --- WEAPON ----------- Shock Bomb Launcher Shock Bomb Launcher Remote Datajack > --- INVENTORY -------- Improved Deuterium Engine Airjet Aerolev Unit Gravmag System Gravmag System Improved Airjet Coolant Injector Experimental Signal Interpreter Improved Terrain Scanner Long-range Terrain Scanner Transmission Jammer ECM Suite Layered Light Armor Plating Relay Coupler [Swarmer] Relay Coupler [Swarmer] System Backup Module EM Pulse Cannon EM Pulse Cannon Advanced Beam Cannon Gauss Cannon Mini Grenade Launcher Precision Grenade Launcher Remote Datajack [Rating: 74] Favorites ----------- Power Cooled Ion Engine Engine Cooled Ion Engine Propulsion Aerolev Unit Treads Light Treads Wheel Wheel Hover Unit Aerolev Unit Utility Terrain Scan Processor Device Improved Terrain Scanner Storage Lightpack 2.0 Processor Terrain Scan Processor Hackware Hacking Suite Protection Layered Light Armor Plating Weapon Advanced Beam Cannon Energy Gun Small Laser Energy Cannon Advanced Beam Cannon Ballistic Gun Assault Rifle Ballistic Cannon Assault Cannon Launcher Shock Bomb Launcher Special Weapon Remote Datajack Build | -11 -10 -10 -9 -9 -9 -8 -8 -7 -7 -7 -7 -6 ------- Run | Scr Mat Min Mat Min Exi Min Mat Fac Gar Fac Gar Fac Slots Evolved 8 | . . . 2 . . . 2 2 . . . 2 Power . | . . . . . . . . . . . . . Propulsion 2 | . . . . . . . 1 1 . . . . Utility 5 | . . . 2 . . . 1 1 . . . 1 Weapon 1 | . . . . . . . . . . . . 1 Parts Attached 155 | 9 19 1 46 1 1 8 27 9 7 19 4 4 Power 7 | 1 1 . 3 . . . 1 . . 1 . . Engine 7 | 1 1 . 3 . . . 1 . . 1 . . Core . | . . . . . . . . . . . . . Reactor . | . . . . . . . . . . . . . Propulsion 29 | 4 5 . 5 . . 3 6 2 . 4 . . Treads 15 | 2 5 . 5 . . . 3 . . . . . Leg . | . . . . . . . . . . . . . Wheel 5 | 2 . . . . . 3 . . . . . . Hover 9 | . . . . . . . 3 2 . 4 . . Flight . | . . . . . . . . . . . . . Utility 44 | 2 4 . 17 . 1 . 6 3 1 7 1 2 Device 23 | 1 2 . 10 . . . 4 1 . 4 . 1 Storage 4 | 1 1 . 1 . 1 . . . . . . . Processor 9 | . 1 . 3 . . . 2 1 . 1 1 . Hackware 7 | . . . 3 . . . . 1 . 2 . 1 Protection 1 | . . . . . . . . . 1 . . . Artifact . | . . . . . . . . . . . . . Weapon 75 | 2 9 1 21 1 . 5 14 4 6 7 3 2 Energy Gun 7 | 1 3 . 1 . . . . 1 1 . . . Energy Cannon 29 | . 1 . 12 1 . 3 6 3 1 2 . . Ballistic Gun 7 | 1 3 . 2 . . . . . . 1 . . Ballistic Cannon 7 | . . . . . . . 3 . 1 2 1 . Launcher 22 | . 2 1 6 . . 2 5 . 3 . 2 1 Special Weapon 3 | . . . . . . . . . . 2 . 1 Impact Weapon . | . . . . . . . . . . . . . Slashing Weapon . | . . . . . . . . . . . . . Piercing Weapon . | . . . . . . . . . . . . . Special Melee Weapon . | . . . . . . . . . . . . . Unidentified Prototypes 5 | . . . 2 . . . 1 1 . 1 . . Parts Lost 16 | . 1 . . 1 . 4 4 3 1 1 . 1 Power 1 | . . . . . . . 1 . . . . . Propulsion 3 | . . . . . . 2 1 . . . . . Utility 5 | . . . . . . . 1 2 1 1 . . Weapon 7 | . 1 . . 1 . 2 1 1 . . . 1 Highest Loss Streak 3 | . 1 . . 1 . 2 1 3 1 1 . 1 Average Slot Usage (%) 92 | . 96 100 99 99 93 85 84 90 81 91 92 92 Engine 9 | . 14 14 10 11 11 11 9 7 7 6 7 6 Treads 14 | . 27 28 21 22 22 15 15 . . . . . Wheel 1 | . . . . . . 6 7 . . . . . Hover 9 | . . . . . . . . 29 23 29 30 26 Device 14 | . 14 14 19 22 15 11 17 14 11 8 1 4 Storage 9 | . 14 14 11 11 11 11 9 7 7 7 7 6 Processor 8 | . . . 11 11 11 11 9 9 7 7 13 13 Hackware 3 | . . . 1 . . . . 4 7 11 15 14 Energy Gun 1 | . 9 . . . . . . . 2 . . . Energy Cannon 11 | . 2 11 18 21 22 18 8 7 5 6 1 . Ballistic Gun 2 | . 13 14 2 . . . . . . . . . Ballistic Cannon 2 | . . . . . . . 4 7 1 5 . . Launcher 1 | . . 2 1 . . 1 4 . 4 . 12 12 Naked Turns . | . . . . . . . . . . . . . Heaviest Build 44 | 13 43 43 44 34 34 22 28 26 26 29 26 30 Greatest Support 60 | 40 40 40 43 43 43 43 60 42 33 44 33 33 Greatest Overweight (x) 2 | . 1 1 1 . . 2 2 . . . . . Average Overweight (x) . | . . 1 . . . . . . . . . . Largest Inventory Capacity 24 | 6 12 12 12 10 24 24 24 24 24 24 24 24 Average Capacity 17 | 5 8 12 10 10 17 24 24 24 24 24 24 24 Most Carried 24 | 1 8 8 10 7 9 9 11 17 22 24 24 24 Average Carried 11 | . 4 8 8 6 6 7 9 13 20 23 24 22 Final Capacity 24 | 6 12 12 10 10 24 24 24 24 24 24 24 24 Final Carried 24 | 1 8 8 7 6 7 7 11 17 21 24 24 22 Class Distribution -------------------- 21% | Mutant 16% | Bothacker-Scout 15% | Hauler-Skirmisher 10% | Skirmisher 10% | Hauler-Scout 9% | Hauler-Mutant 5% | Scavenger-Skirmisher 5% | Bothacker-Mutant 5% | Scavenger-Mutant Dominant Class ---------------- Mutant | -10/Materials Mutant | -10/Mines Mutant | -9/Materials Skirmisher | -9/Mines Hauler-Mutant | -9/Exiles Hauler-Skirmisher | -8/Mines Hauler-Skirmisher | -8/Materials Hauler-Scout | -7/Factory Hauler-Mutant | -7/Garrison Bothacker-Scout | -7/Factory Bothacker-Mutant | -7/Garrison Bothacker-Scout | -6/Factory Resources | -11 -10 -10 -9 -9 -9 -8 -8 -7 -7 -7 -7 -6 ----------- Run | Scr Mat Min Mat Min Exi Min Mat Fac Gar Fac Gar Fac Matter Collected 3173 | 286 336 54 742 10 . 243 462 127 104 395 352 62 Remotely . | . . . . . . . . . . . . . Salvage Created 5169 | 117 600 1 1460 355 . 504 753 93 178 395 504 209 Parts 334 | 8 50 . 96 18 . 42 39 11 7 26 16 21 Haulers Intercepted 13 | . 2 . 6 . . . 2 . . 3 . . Recyclers Shooed . | . . . . . . . . . . . . . Parts Field Recycled . | . . . . . . . . . . . . . Retrieved Matter . | . . . . . . . . . . . . . Parts Self-Destructed . | . . . . . . . . . . . . . Prevented . | . . . . . . . . . . . . . Kills | -11 -10 -10 -9 -9 -9 -8 -8 -7 -7 -7 -7 -6 ------- Run | Scr Mat Min Mat Min Exi Min Mat Fac Gar Fac Gar Fac Combat Hostiles Destroyed 115 | . 12 6 29 12 . 20 11 3 7 2 11 2 Melee 2 | . . . . 1 . 1 . . . . . . Guns 11 | . 9 . 1 . . . . . 1 . . . Cannons 46 | . . . 15 11 . 7 5 3 2 2 1 . AOE 53 | . 3 6 13 . . 12 6 . 4 . 8 1 Classes Destroyed 15 | 2 5 1 4 . . 2 . 1 . . . . Worker 7 | . . . 2 . . 2 . . . 3 . . Builder 12 | . 4 . 1 . . . 3 . . . . 4 Tunneler 6 | 1 . . 1 . . 2 . . . 2 . . Hauler 13 | . 2 . 6 . . . 2 . . 3 . . Recycler 4 | 1 . . 1 . . 1 . . . 1 . . Operator 2 | . . . 2 . . . . . . . . . Watcher 6 | . 2 . 2 . . . 1 . . 1 . . Swarmer 35 | . 3 . 10 4 . 14 . . . . 4 . Grunt 46 | . 9 . 10 7 . 4 8 . 3 . 5 . Brawler 2 | . . . . . . 1 . . 1 . . . Duelist 1 | . . . 1 . . . . . . . . . Sentry 14 | . . . 8 . . . 2 1 1 . 1 1 Hunter 4 | . . . . . . 1 1 . 1 . . 1 Programmer 6 | . . . . . . . . 2 1 2 1 . Assembled 7 | . . 6 . 1 . . . . . . . . Best Kill Streak 8 | 2 5 6 8 7 . 8 3 2 3 2 3 5 Combat Bots Only 7 | . 3 6 4 7 . 6 3 2 3 1 3 1 Max Kills in Single Turn 3 | 1 2 2 3 2 . 3 3 1 1 1 2 2 Gunslinging . | . . . . . . . . . . . . . Exploded 3 | . 2 2 3 . . 3 2 . 1 . 2 1 Melee 1 | . . . . 1 . 1 . . . . . . Uniques/NPCs Destroyed . | . . . . . . . . . . . . . Combat | -11 -10 -10 -9 -9 -9 -8 -8 -7 -7 -7 -7 -6 -------- Run | Scr Mat Min Mat Min Exi Min Mat Fac Gar Fac Gar Fac Damage Taken 4209 | . 426 165 504 218 . 644 663 507 520 117 327 118 Core 788 | . 29 36 74 48 . 226 165 55 62 41 30 22 Absorbed by Shields . | . . . . . . . . . . . . . Core Remaining (%) 66 | 100 . 74 . . . 13 70 . . . 73 . Volleys Fired 388 | 5 49 6 73 24 . 38 39 14 27 75 26 12 Largest 2 | 2 2 1 2 2 . 2 2 2 2 2 2 2 Hottest 136 | 60 60 30 136 136 . 136 112 112 123 116 116 72 Shots Fired 600 | 10 74 6 128 48 . 56 62 28 39 87 47 15 Gun 101 | 10 69 . 12 . . . . . 10 . . . Cannon 361 | . . . 98 48 . 38 39 28 12 84 14 . Launcher 133 | . 5 6 18 . . 18 23 . 17 . 33 13 Special 5 | . . . . . . . . . . 3 . 2 Kinetic 124 | 5 44 . 12 . . . 17 14 2 24 6 . Thermal 328 | 5 25 . 98 48 . 38 22 14 10 60 8 . Explosive 67 | . 5 6 18 . . 18 3 . 17 . . . Electromagnetic 76 | . . . . . . . 20 . 10 . 33 13 Robot Hit Streak 15 | 7 12 2 7 12 . 9 9 15 11 7 9 12 Robot Miss Streak 5 | 1 2 2 3 3 . 5 2 1 2 3 4 1 Penetration Max . | . . . . . . . . . . . . . Secondary Targets 1 | . 1 . . . . . . . . . . . Max Gunslinging Chain 1 | . 1 . . . . . . . . . . . Shots Hit Robots 352 | 7 50 2 72 26 . 24 44 24 24 46 24 9 Core Hits 250 | 3 35 14 57 11 . 37 25 6 17 14 20 11 Critical Hits 36 | . . . 13 5 . 2 2 1 2 10 1 . Critical Kills 9 | . . . 3 1 . 2 . . 1 2 . . Critical Parts Destroyed 26 | . . . 9 4 . . 2 1 1 8 1 . Melee Attacks . | . . . . . . . . . . . . . Impact . | . . . . . . . . . . . . . Slashing . | . . . . . . . . . . . . . Piercing . | . . . . . . . . . . . . . Sneak Attacks . | . . . . . . . . . . . . . Combat Hostiles . | . . . . . . . . . . . . . Follow-up Attacks . | . . . . . . . . . . . . . Damage Inflicted 11431 | 86 910 295 2585 632 . 1202 1477 545 1112 1024 957 606 Guns 928 | 86 598 . 94 . . . . . 150 . . . Cannons 4947 | . . . 1280 620 . 416 727 545 121 1024 214 . Explosions 5534 | . 312 295 1211 . . 778 748 . 841 . 743 606 Melee . | . . . . . . . . . . . . . Ramming 22 | . . . . 12 . 8 2 . . . . . Kinetic 1382 | 41 375 . 94 . . . 358 279 . 123 112 . Thermal 4678 | 45 223 . 1319 620 . 416 463 266 121 901 102 202 Explosive 3373 | . 312 295 1147 . . 778 . . 841 . . . Electromagnetic 1976 | . . . 25 . . . 654 . 150 . 743 404 Impact . | . . . . . . . . . . . . . Slashing . | . . . . . . . . . . . . . Piercing . | . . . . . . . . . . . . . Highest Corruption 2 | . . . 2 2 2 2 1 . 1 1 2 . Average Corruption 1 | . . . 2 2 2 2 1 . 1 1 1 . Corruption Purged 1 | . . . . . . . . . . 1 . . Effects 39 | . . . 14 8 2 6 3 . . 3 3 . Message Errors 9 | . . . 1 3 1 2 2 . . . . . Heat Flow Errors 9 | . . . 4 2 1 2 . . . . . . Energy Discharges 8 | . . . 3 2 . . . . . 1 2 . Data Loss (minor) 9 | . . . 4 1 . . 1 . . 2 1 . Targeting Errors 3 | . . . 2 . . 1 . . . . . . Weapon Failures 1 | . . . . . . 1 . . . . . . Overload Shots . | . . . . . . . . . . . . . Overflow Damage 130 | . . . 15 5 . 23 23 5 39 3 2 15 Projectiles 36 | . . . 10 5 . 13 . 5 . 3 . . Explosions 94 | . . . 5 . . 10 23 . 39 . 2 15 Melee . | . . . . . . . . . . . . . Knockbacks 6 | . . . . . . . 4 1 . . 1 . Impact . | . . . . . . . . . . . . . Kinetic 6 | . . . . . . . 4 1 . . 1 . Secondary . | . . . . . . . . . . . . . Self-Inflicted Damage 481 | . 24 75 30 . . 57 189 . 93 . 13 . Shots 15 | . 1 2 1 . . 2 4 . 4 . 1 . Rammed 5 | . . . . 1 . 3 1 . . . . . Targets Rammed 6 | . . . . 2 . 3 1 . . . . . Kicked . | . . . . . . . . . . . . . Crushed 1 | . . . . 1 . . . . . . . . Highest Temperature 564 | . 54 . 439 360 239 564 127 233 11 240 180 5 Average Temperature 90 | . 26 . 85 116 119 167 56 130 3 49 51 5 Received Heat Transfer 987 | . 201 20 123 82 . 99 207 114 60 . 81 . Effects 11 | . . . 4 2 . 5 . . . . . . Shutdowns 1 | . . . . . . 1 . . . . . . Energy Bleed 1 | . . . . . . 1 . . . . . . Interference 5 | . . . 3 2 . . . . . . . . Matter Decay 1 | . . . . . . 1 . . . . . . Damage (minor) 1 | . . . 1 . . . . . . . . . Damage (core) 2 | . . . . . . 2 . . . . . . Siege Activations . | . . . . . . . . . . . . . Robots Corrupted 4 | . . . . . . . 1 . . . 2 1 Combat Hostiles 3 | . . . . . . . . . . . 2 1 Parts Fried 19 | . . . . . . . 5 . . . 10 4 Impact Corruptions . | . . . . . . . . . . . . . Robots Melted . | . . . . . . . . . . . . . Combat Hostiles . | . . . . . . . . . . . . . Parts Melted 6 | . . . 2 1 . 1 . . . 2 . . Heat Transferred 8004 | 100 500 . 2344 1036 . 740 779 444 222 1591 148 100 Parts Sabotaged . | . . . . . . . . . . . . . Parts Stolen . | . . . . . . . . . . . . . Parts Stripped . | . . . . . . . . . . . . . Power Chain Reactions 9 | . . . 1 . . . 4 . . . 3 1 Missiles Intercepted . | . . . . . . . . . . . . . Alert | -11 -10 -10 -9 -9 -9 -8 -8 -7 -7 -7 -7 -6 ------- Run | Scr Mat Min Mat Min Exi Min Mat Fac Gar Fac Gar Fac Peak Influence 644 | 10 263 51 644 270 . 409 321 172 312 208 273 252 Average Influence 165 | 4 113 51 385 207 . 165 130 35 213 70 157 183 Maximum Alert Level 2 | . 1 . 2 1 . 2 1 . 1 1 1 1 Low Security (%) 71 | 100 95 100 23 29 . 75 81 100 39 99 57 89 Level 1 17 | . 4 . 26 70 . 11 18 . 60 . 42 10 Level 2 10 | . . . 49 . . 13 . . . . . . Level 3 . | . . . . . . . . . . . . . Level 4 . | . . . . . . . . . . . . . Level 5 . | . . . . . . . . . . . . . High Security . | . . . . . . . . . . . . . Max Security . | . . . . . . . . . . . . . Squads Dispatched 26 | . 1 . 5 . . 1 4 4 . 8 . 3 Investigation 12 | . 1 . 3 . . . 2 2 . 4 . . Extermination 4 | . . . . . . . . 2 . 2 . . Reinforcement 9 | . . . 2 . . 1 1 . . 2 . 3 Assault 1 | . . . . . . . 1 . . . . . Garrison . | . . . . . . . . . . . . . Intercept . | . . . . . . . . . . . . . Construction Impeded 2 | . . . . . . 1 . . . . . 1 Haulers Reinforced 3 | . . . . . . . . . . 2 . 1 Stealth | -11 -10 -10 -9 -9 -9 -8 -8 -7 -7 -7 -7 -6 --------- Run | Scr Mat Min Mat Min Exi Min Mat Fac Gar Fac Gar Fac Distress Signals 5 | . 1 . 3 . . . 1 . . . . . Communications Jammed . | . . . . . . . . . . . . . Distress Signals . | . . . . . . . . . . . . . Times Spotted 180 | . 16 8 49 15 . 21 22 6 9 16 14 4 Peak Tracking Total 9 | . 4 6 5 5 . 6 6 2 6 9 4 2 Tactical Retreats 17 | . 1 . 1 4 . 2 1 . 2 2 4 . Traps | -11 -10 -10 -9 -9 -9 -8 -8 -7 -7 -7 -7 -6 ------- Run | Scr Mat Min Mat Min Exi Min Mat Fac Gar Fac Gar Fac Traps Triggered 5 | . 1 . 2 . . . . . . . 2 . Indirectly . | . . . . . . . . . . . . . Trap Hack Attempts . | . . . . . . . . . . . . . Triggered . | . . . . . . . . . . . . . Disarmed . | . . . . . . . . . . . . . Reprogrammed . | . . . . . . . . . . . . . Reused . | . . . . . . . . . . . . . Traps Extracted . | . . . . . . . . . . . . . Installed . | . . . . . . . . . . . . . Triggered . | . . . . . . . . . . . . . Machines | -11 -10 -10 -9 -9 -9 -8 -8 -7 -7 -7 -7 -6 ---------- Run | Scr Mat Min Mat Min Exi Min Mat Fac Gar Fac Gar Fac Machines Disabled 13 | . . . 8 . . . 3 . 1 . . 1 Max in Single Turn 2 | . . . 2 . . . 2 . 1 . . . Garrison Access 1 | . . . . . . . 1 . . . . . Garrison Relay 1 | . . . . . . . . . 1 . . . Machines Sabotaged . | . . . . . . . . . . . . . Garrisons Compromised . | . . . . . . . . . . . . . Overloaded Fab Kills . | . . . . . . . . . . . . . Fab Network Shutdowns . | . . . . . . . . . . . . . Hacking | -11 -10 -10 -9 -9 -9 -8 -8 -7 -7 -7 -7 -6 --------- Run | Scr Mat Min Mat Min Exi Min Mat Fac Gar Fac Gar Fac Machines Accessed 53 | . 6 . 10 . 1 . 7 11 . 16 . 2 Terminals 27 | . 5 . 6 . . . 3 5 . 7 . 1 Fabricators 4 | . . . . . . . . 1 . 3 . . Repair Stations 8 | . 1 . 2 . . . 2 2 . 1 . . Recycling Units 1 | . . . 1 . . . . . . . . . Scanalyzers 7 | . . . 1 . . . 1 2 . 3 . . Garrison Access 5 | . . . . . . . 1 1 . 2 . 1 Total Hacks 175 | . 27 . 34 . 1 . 25 37 . 47 . 4 Successful 108 | . 16 . 17 . 1 . 19 21 . 32 . 2 Failed 64 | . 10 . 17 . . . 5 16 . 14 . 2 Catastrophic 8 | . 1 . 2 . . . . 1 . 3 . 1 Database Lockouts 3 | . 1 . . . . . 1 . . 1 . . Manual 58 | . 14 . 5 . 1 . 9 10 . 15 . 4 Terminals 86 | . 19 . 18 . . . 8 20 . 18 . 3 Fabricators 9 | . . . . . . . . 2 . 7 . . Repair Stations 43 | . 8 . 7 . . . 10 6 . 12 . . Recycling Units 3 | . . . 3 . . . . . . . . . Scanalyzers 25 | . . . 6 . . . 5 7 . 7 . . Garrison Access 8 | . . . . . . . 2 2 . 3 . 1 Terminal Hacks 30 | . 7 . 6 . 1 . 3 5 . 7 . 1 Robot Schematic 1 | . . . . . . . . . . 1 . . Robot Analysis 8 | . 3 . . . . . 1 . . 3 . 1 Prototype ID Bank 4 | . 1 . 1 . . . . 1 . 1 . . Repair Station Index 1 | . . . . . . . . 1 . . . . Garrison Index 1 | . . . . . . . . 1 . . . . Alert Level 5 | . 1 . 3 . . . 1 . . . . . Unreport Threat 3 | . . . 2 . . . 1 . . . . . Locate Traps 2 | . 2 . . . . . . . . . . . Recall Investigation 1 | . . . . . . . . . . 1 . . Recall Reinforcements 1 | . . . . . . . . . . 1 . . Registered Prototypes 1 | . . . . . . . . 1 . . . . Zone Layout 1 | . . . . . . . . 1 . . . . EX-Prototype ID Bank 1 | . . . . . 1 . . . . . . . Fabricator Hacks 5 | . . . . . . . . 2 . 3 . . Load Schematic 3 | . . . . . . . . 1 . 2 . . Build 2 | . . . . . . . . 1 . 1 . . Repair Station Hacks 37 | . 6 . 5 . . . 10 4 . 12 . . Scan Component 21 | . 3 . 3 . . . 6 3 . 6 . . Repair 16 | . 3 . 2 . . . 4 1 . 6 . . Recycling Unit Hacks 1 | . . . 1 . . . . . . . . . Retrieve Components 1 | . . . 1 . . . . . . . . . Scanalyzer 18 | . . . 4 . . . 4 4 . 6 . . Insert Component 10 | . . . 2 . . . 2 3 . 3 . . Analyze 8 | . . . 2 . . . 2 1 . 3 . . Garrison Access Hacks 7 | . . . . . . . 1 2 . 3 . 1 Unlock Access 5 | . . . . . . . 1 1 . 2 . 1 Coupler Status 2 | . . . . . . . . 1 . 1 . . Unauthorized Hacks 10 | . 3 . 1 . . . 1 4 . 1 . . Terminals 8 | . 3 . . . . . 1 3 . 1 . . Assimilate 3 | . . . . . . . 1 1 . 1 . . Botnet 3 | . 2 . . . . . . 1 . . . . Operators 2 | . 1 . . . . . . 1 . . . . Fabricators . | . . . . . . . . . . . . . Repair Stations . | . . . . . . . . . . . . . Recycling Units . | . . . . . . . . . . . . . Scanalyzers 2 | . . . 1 . . . . 1 . . . . Extract 2 | . . . 1 . . . . 1 . . . . Garrison Access . | . . . . . . . . . . . . . Data Cores Recovered . | . . . . . . . . . . . . . Used . | . . . . . . . . . . . . . Hacking Detections 44 | . 6 . 10 . . . 5 9 . 13 . 1 Full Trace Events 7 | . . . 2 . . . 1 1 . 3 . . Feedback Events . | . . . . . . . . . . . . . Feedback Blocked . | . . . . . . . . . . . . . Robot Schematics Acquired 1 | . . . . . . . . . . 1 . . Robots Built 1 | . . . . . . . . . . 1 . . Matter 153 | . . . . . . . . . . 153 . . Time 81 | . . . . . . . . . . 81 . . Total Robot Build Rating 1 | . . . . . . . . . . 1 . . Part Schematics Acquired 11 | . . . 5 . . . 2 2 . 2 . . Parts Built 1 | . . . . . . . . 1 . . . . Matter 186 | . . . . . . . . 186 . . . . Time 99 | . . . . . . . . 99 . . . . Total Part Build Rating 2 | . . . . . . . . 2 . . . . Parts Repaired 16 | . 3 . 2 . . . 4 1 . 6 . . Time 677 | . 78 . 57 . . . 178 76 . 288 . . Parts Recycled . | . . . . . . . . . . . . . Recycled Matter . | . . . . . . . . . . . . . Retrieved Matter . | . . . . . . . . . . . . . Retrieved Components 10 | . . . 10 . . . . . . . . . Parts Scanalyzed 7 | . . . 2 . . . 2 1 . 2 . . Part Schematics Acquired 7 | . . . 2 . . . 2 1 . 2 . . Parts Damaged . | . . . . . . . . . . . . . Bothacking | -11 -10 -10 -9 -9 -9 -8 -8 -7 -7 -7 -7 -6 ------------ Run | Scr Mat Min Mat Min Exi Min Mat Fac Gar Fac Gar Fac Used RIF Installer 2 | . . . . . . . . . 1 . 1 . Coupler Efficiency 1 | . . . . . . . . . . . 1 . Robots Hacked 4 | . . . . . . . . . . 2 . 2 Non-combat 3 | . . . . . . . . . . 2 . 1 Combat 1 | . . . . . . . . . . . . 1 Robot Hacks Applied 4 | . . . . . . . . . . 2 . 2 no_distress 1 | . . . . . . . . . . 1 . . check_alert 1 | . . . . . . . . . . 1 . . overwrite_iff 1 | . . . . . . . . . . . . 1 formatsys_low 1 | . . . . . . . . . . . . 1 Relay Couplers Released 6 | . . . . . . . 1 . 5 . . . Machine Destruction 6 | . . . . . . . 1 . 5 . . . Attached 3 | . . . . . . . . . . 2 . 1 Robots Rewired . | . . . . . . . . . . . . . Allies Hacked 1 | . . . . . . . . 1 . . . . Hacks Repelled . | . . . . . . . . . . . . . Allies | -11 -10 -10 -9 -9 -9 -8 -8 -7 -7 -7 -7 -6 -------- Run | Scr Mat Min Mat Min Exi Min Mat Fac Gar Fac Gar Fac Total Allies 9 | . . 3 . . . . 1 1 . 2 . 2 Largest Group 3 | . . 3 3 . . . 1 2 1 2 . 1 Highest-Rated Group 41 | . . 40 40 . . . 10 20 10 20 . 41 Highest-Rated Ally 41 | . . 16 16 . . . 10 10 10 10 . 41 Total Orders 21 | . . . . . . . 2 5 4 8 . 2 GOTO 11 | . . . . . . . 1 3 2 4 . 1 FOLLOW 10 | . . . . . . . 1 2 2 4 . 1 Ally Attacks 53 | . . . 49 . . . . . . . . 4 Total Damage 697 | . . . 572 . . . . . . . . 125 Kills 13 | . . . 12 . . . . . . . . 1 Allies Corrupted . | . . . . . . . . . . . . . Allies Melted . | . . . . . . . . . . . . . Intel | -11 -10 -10 -9 -9 -9 -8 -8 -7 -7 -7 -7 -6 ------- Run | Scr Mat Min Mat Min Exi Min Mat Fac Gar Fac Gar Fac Robot Analysis Total 8 | . 3 . . . . . 1 . . 3 . 1 Derelict Logs Recovered 3 | . . 2 . 1 . . . . . . . . Drone Launches . | . . . . . . . . . . . . . Drone Recoveries . | . . . . . . . . . . . . . Exploration | -11 -10 -10 -9 -9 -9 -8 -8 -7 -7 -7 -7 -6 ------------- Run | Scr Mat Min Mat Min Exi Min Mat Fac Gar Fac Gar Fac Turns Passed 10075 | 117 1090 396 1888 695 415 633 1521 925 198 1664 377 156 Spaces Moved 7436 | 53 502 207 880 359 255 350 730 1345 232 1997 355 171 Core 2 | 2 . . . . . . . . . . . . Treads 2787 | 43 502 207 880 359 255 236 305 . . . . . Legs . | . . . . . . . . . . . . . Wheels 518 | 8 . . . . . 114 396 . . . . . Hover 4129 | . . . . . . . 29 1345 232 1997 355 171 Flight . | . . . . . . . . . . . . . Fastest Speed 38 | 50 160 180 160 160 160 80 42 40 42 38 42 42 Average Speed 90 | 143 165 180 160 160 160 136 122 41 42 40 42 42 Slowest Speed 210 | 160 180 180 180 160 160 160 210 42 42 42 42 42 Overloaded Moves . | . . . . . . . . . . . . . Propulsion Burnouts . | . . . . . . . . . . . . . Robots Hopped . | . . . . . . . . . . . . . Cave-ins Triggered . | . . . . . . . . . . . . . Exploration Rate (%) 47 | 5 77 59 73 56 62 75 40 25 50 41 46 7 Regions Visited 12 Branch Regions 4 Pre-discovered Areas . | . . . . . . . . . . . . . Known Exits Taken 7 | . 1 1 1 . . 1 1 1 . 1 . . Unknown Exits Taken 3 | 1 . . . 1 1 . . . . . . . Scrap Searched 4 | . . 1 . 1 . 2 . . . . . . Spaces Dug 101 | . . . 20 . . . 72 . . 9 . . Terrain Destroyed 459 | . 14 34 96 . . 131 80 . 76 11 9 8 Melee . | . . . . . . . . . . . . . Projectile 14 | . . . . . . 1 1 . 1 11 . . AOE 445 | . 14 34 96 . . 130 79 . 75 . 9 8 Actions | -11 -10 -10 -9 -9 -9 -8 -8 -7 -7 -7 -7 -6 --------- Run | Scr Mat Min Mat Min Exi Min Mat Fac Gar Fac Gar Fac Total 10134 | 80 685 224 1219 431 263 445 1285 1677 289 2763 532 241 Wait 1991 | 11 100 5 184 46 . 41 471 291 20 644 127 51 Move 7422 | 52 501 206 879 358 254 349 729 1344 230 1996 353 171 Hop . | . . . . . . . . . . . . . Pick Up 71 | 1 7 . 11 . 6 4 11 11 5 14 . 1 Fast Attach 54 | 9 7 . 16 . . 1 9 5 . 7 . . Attach 30 | . 1 . 8 1 1 4 5 3 1 2 . 4 Detach 11 | . 1 . 6 . 1 . . 1 . 1 . 1 Swap 71 | . 11 1 22 . . 3 13 1 6 10 4 . Drop 59 | 2 8 . 20 . 1 1 7 6 . 14 . . Fire 388 | 5 49 6 73 24 . 38 39 14 27 75 26 12 Melee . | . . . . . . . . . . . . . Ram 3 | . . . . . . 3 . . . . . . Kick . | . . . . . . . . . . . . . Crush 3 | . . . . 2 . . 1 . . . . . Escape Stasis 22 | . . . . . . . . . . . 22 . Rewire 9 | . . 6 . . . 1 . 1 . . . 1 Trap . | . . . . . . . . . . . . . Miscellaneous . | . . . . . . . . . . . . . Route ------- -11/Scrapyard -10/Materials (discovered 3 exits: *Mat / *Min x2) -10/Mines -9/Materials (discovered 2 exits: *Mat / *Min) -9/Mines -9/Exiles (discovered 2 exits: [*Min x2]) -8/Mines -8/Materials -7/Factory (discovered 2 exits: [*Low] / Gar) -7/Garrison -7/Factory (discovered 5 exits: *Fac / [*Sto] / [Low] / Gar / Gar) -7/Garrison (discovered 2 exits: *Fac x2) -6/Factory (discovered 2 exits: [*Low] / Gar) History --------- Turn | Location | Event 11 | -11/Scrapyard | Discovered new exit (range 15) 118 | -11/Scrapyard | Entered Materials 311 | -10/Materials | Build established: Mutant 478 | -10/Materials | Discovered new exit (range 15) 502 | -10/Materials | Identified exit to Mines 769 | -10/Materials | Discovered new exit (range 13) 820 | -10/Materials | Central database locked down 999 | -10/Materials | Discovered exit to Mines (range 16) 1106 | -10/Materials | Repaired Assault Rifle 1134 | -10/Materials | Repaired Lgt. Treads 1161 | -10/Materials | Repaired Lgt. Treads 1208 | -10/Materials | Entered Mines 1331 | -10/Mines | Learned Materials emergency access door positions 1457 | -10/Mines | Identified exit to Materials 1526 | -10/Mines | Assembled infested the area 1531 | -10/Mines | Assisted by a Guerilla fighting off Assembled 1568 | -10/Mines | Assisted by bots powering up and referring to "LRC-V3" 1604 | -10/Mines | Entered Materials 1604 | -9/Materials | Accompanied by 3 allies 1604 | -9/Materials | Evolved 2 slots: Utility x2 1953 | -9/Materials | Build established: Scavenger-Skirmisher 2071 | -9/Materials | Discovered new exit (range 15) 2911 | -9/Materials | Identified exit to Mines 3046 | -9/Materials | Repaired Adv. Beam Cannon 3207 | -9/Materials | Repaired Cooling System 3300 | -9/Materials | Discovered new exit (range 15) 3330 | -9/Materials | Build established: Mutant 3353 | -9/Materials | Identified exit to Materials 3492 | -9/Materials | Entered Mines 3544 | -9/Mines | Learned 2 Materials zone layouts 3642 | -9/Mines | Build established: Skirmisher 3651 | -9/Mines | Excavation squad dispatched 3651 | -9/Mines | A large section of the Mines collapsed 3901 | -9/Mines | Excavation squad dispatched 4142 | -9/Mines | Destroyed 7 combat bots 4151 | -9/Mines | Excavation squad dispatched 4163 | -9/Mines | Discovered new exit (range 12) 4181 | -9/Mines | Deemed a non-threat by the Exiles lab entrance 4187 | -9/Mines | Entered Exiles 4208 | -9/Exiles | Discovered new exit (range 15) 4227 | -9/Exiles | Met 8R-AWN 4255 | -9/Exiles | Met EX-HEX 4296 | -9/Exiles | Met EX-BIN 4319 | -9/Exiles | Aligned with FarCom system 4320 | -9/Exiles | Given EX-Vault access code 4363 | -9/Exiles | Opened EX-Vault 4377 | -9/Exiles | Found Lightpack 2.0 4423 | -9/Exiles | Warned to stay clear of 0b10 Research branches 4477 | -9/Exiles | Met EX-DEC 4584 | -9/Exiles | Discovered new exit (range 14) 4602 | -9/Exiles | Left Exiles lab with Lightpack 2.0 4602 | -9/Exiles | Entered Mines 4890 | -8/Mines | Build established: Hauler-Skirmisher 5125 | -8/Mines | Discovered exit to Materials (range 15) 5147 | -8/Mines | Core integrity fell below 50% 5148 | -8/Mines | Core integrity fell below 20% 5235 | -8/Mines | Entered Materials 5235 | -8/Materials | Evolved 2 slots: Propulsion x1, Utility x1 5613 | -8/Materials | Identified exit to Garrison 5619 | -8/Materials | Discovered new exit (range 12) 5630 | -8/Materials | Central database locked down 6104 | -8/Materials | Repaired Adv. Beam Cannon 6188 | -8/Materials | Identified exit to Factory 6562 | -8/Materials | Repaired Assault Cannon 6602 | -8/Materials | Repaired Shock Bomb Launcher 6654 | -8/Materials | Repaired Adv. Beam Cannon 6756 | -8/Materials | Entered Factory 6756 | -7/Factory | Accompanied by 1 ally 6756 | -7/Factory | Evolved 2 slots: Propulsion x1, Utility x1 7035 | -7/Factory | Build established: Hauler-Scout 7076 | -7/Factory | Discovered new exit (range 3) 7155 | -7/Factory | Lost 3 parts (2u1w) 7450 | -7/Factory | Identified exit to Garrison 7545 | -7/Factory | Fabricated Adv. Beam Cannon? 7556 | -7/Factory | Repaired Broken Aerolev Unit? 7681 | -7/Factory | Entered Garrison 7681 | -7/Garrison | Accompanied by 1 ally 7718 | -7/Garrison | Garrison Relay disabled 7753 | -7/Garrison | Triggered checkpoint 7757 | -7/Garrison | Triggered checkpoint 7867 | -7/Garrison | Discovered new exit (range 10) 7874 | -7/Garrison | Installed Relay Interface Framework 7879 | -7/Garrison | Entered Factory 7879 | -7/Factory | Accompanied by 1 ally 8158 | -7/Factory | Discovered new exit (range 10) 8275 | -7/Factory | Discovered new exit (range 13) 8384 | -7/Factory | Build established: Bothacker-Scout 8493 | -7/Factory | Discovered new exit (range 4) 8946 | -7/Factory | Fabricated O-16 Technician (x1) 8968 | -7/Factory | Identified exit to Garrison 9146 | -7/Factory | Repaired Cld. Ion Engine 9199 | -7/Factory | Repaired Adv. Beam Cannon 9260 | -7/Factory | Repaired Aerolev Unit 9299 | -7/Factory | Repaired Transmission Jammer 9344 | -7/Factory | Repaired Remote Datajack 9389 | -7/Factory | Repaired Gauss Cannon 9446 | -7/Factory | Central database locked down 9543 | -7/Factory | Identified exit to Garrison 9543 | -7/Factory | Entered Garrison 9619 | -7/Garrison | Triggered checkpoint 9817 | -7/Garrison | Discovered new exit (range 15) 9848 | -7/Garrison | Triggered checkpoint 9910 | -7/Garrison | Discovered new exit (range 10) 9914 | -7/Garrison | Build established: Bothacker-Mutant 9918 | -7/Garrison | Expanded RIF knowledge: Coupler Efficiency 9920 | -7/Garrison | Entered Factory 9920 | -6/Factory | Evolved 2 slots: Utility x1, Weapon x1 9941 | -6/Factory | Found Prototype Processor 9943 | -6/Factory | Discovered new exit (range 16) 10023 | -6/Factory | Identified exit to Garrison 10076 | -6/Factory | Self-destructed Last Messages --------------- 10053_ Slug penetrates Assembly Bed. 10053_ Assembly Bed disabled. 10053_ Slug penetrates Wall. 10054_ Slug penetrates H-66 Slayer. 10058_ Door malfunctions. 10060_ Slug penetrates H-66 Slayer. 10060_ H-66 Slayer destroyed. 10062_ U-05 Engineer destroyed. 10063_ Network quickbooting H-66 Slayer, ETC: 7. 10064_ ALERT: Construction progress impeded, dispatching reinforcements to local area. 10064_ Chain reaction triggered in Lgt. Fission Core. 10064_ U-05 Engineer destroyed. 10064_ Destroyed Welding Torch. 10064_ Destroyed Lgt. Ion Engine. 10068_ Targeting Computer fried. 10068_ Phase Shifter fried. 10068_ Targeting Computer fried. 10068_ H-66 Slayer destroyed. 10070_ U-05 Engineer builds a Wall. Map ----- +----------------------------------------------------+ | ???????????????????????##???## ##??????? ? ??? | | ??????????????????????????#??# #???## ?"?"?"? | | ????????????????????? ???????# ???#???""???"?? | | ???????????????? ?? ???##?#?## ?#?#?#??"?"""? | | ??????????????? ? ?????#??#??# ?##??????"?"?? | | ???????????????????????####??# #?????? ???? ?? | | ???????????????#??#? ?? ! # #???#???? ?? | | ????????????????????? ? # ##########/#### | | ???????????????#?#???????? # | | ?????????????????##????" """ / | | ?????????????????????"?? ??"?# """ """"? | | ??????????#??? ????? "?? "?? # "G" """"" | | ??????????????????????"" ????# ! ">" """"" | | ?????????????????? + ? ? ????# w !%/ """"" | | ?????????????????#?????#?#???# ! """"" | | ????????????? ??#???#??????### """"" | | ???????????#?????#?########### """"" | | ?????????????????? ##### gg """"" | | ?????????????????? !| # ### ^^ """"" | | ?????????? ?????? ########/# # | | ?????????????? ? ??? ?#??## !%!![= # ^ ^ | | ???????????????"" ? #???# """%!= [# | | ??????????????""" ????##??# """ [|[% | | ???????????# """ ] !???#??# """ === | | ???????????# ##### """ =% # | | ???????????+ @ + ! + | | ???????????#?????############ ! ############# | | ?????????? ??????#????#?#??## #??????##?#?? | | ?????????????????###????????# #??###?#?##?? | | ????????????????????????????##########?#?#?##??##? | | ????????????????????? ???? ?? / ?? ? ???? ??# | | ??????????????????#???????#??##? ?? ???? ???#? | | ?????????????????????#?#???#??# ????"""?"???""??#? | | ???????????????????????#???#??#?"?? ""??"?"??"" ## | | ???????????????????#????????#???????""" ??"?""? ## | | ??????????????????????????????#?? ?? ? ?? ?? ? #? | | ????????????????????????????????? ???? ?????? ## | | ????????????????????????????????????????????##?##? | | ???????????????????????????????#??????? ???? ? ? | | ????????????????????????? ??#??????????????#?##?## | | ????????????????????????????????#??#?? ?? ??#?#### | | ???????????????????????? ???????????? ????#####?## | | ????????????????????????? ??????????#???? ?#####?# | | ???????????????????????????? ??"?? ??? ???#?###?# | | ???????????????????????????????????????????##?#### | | ???????????????????????????????"??? ???????#??##?# | | ??????????????????????????????????????? ???###???# | | ??????????????????????????????????????????###???## | | ??????????????????????????????????????? ???##?##?# | | ??????????????????????????????????????????# ?? | +----------------------------------------------------+ Best States ------------- Heat Dissipation 56 Energy Generation 23 Energy Capacity 280 Matter Stores 300 Matter Capacity 300 Sight Range 16 Terrain Scan Range 24 Terrain Scan Density 210 Jamming Range 8 Armor Coverage 150 Evasion (%) 57 Targeting Accuracy 8 Launcher Accuracy 20 Recoil Reduction 3 Offensive Hacking 10 Defensive Hacking 10 Item Schematics ----------------- Grenade Launcher | -9/Materials | Scanalyzed Imp. Treads | -9/Materials | Scanalyzed Cld. Ion Engine | -9/Materials | Extracted Imp. Ion Engine | -9/Materials | Extracted Arm. Wheel | -9/Materials | Extracted Adv. Beam Cannon | -8/Materials | Scanalyzed Airjet | -8/Materials | Scanalyzed Imp. Propulsion Shielding | -7/Factory | Extracted Aerolev Unit | -7/Factory | Scanalyzed EM Pulse Cannon | -7/Factory | Scanalyzed Imp. Deuterium Engine | -7/Factory | Scanalyzed Robot Schematics ------------------ O-16 Technician | -7/Factory | Hacked Fabricated ------------ Adv. Beam Cannon | x1 | -7/Factory O-16 Technician | x1 | -7/Factory Alien Tech Used ----------------- None Achievements -------------- None Challenges ------------ None Game ------ Seed SpikedDirtySword Manual? 0 Play Time 01:36:51 Cumulative 37.6 hours Start 2020.08.27 @ 11:01:07 End 2020.09.04 @ 17:44:53 Sessions 4 Manual Loads 0 Difficulty Rogue Special Mode None Game No. 89 Rogue 89 Adventurer 0 Explorer 0 Win Type - Total 0 Types 0/0/0/0/0/0/0 Lore% 40 Gallery% 40 Achievement% 33 Wizard Run 0 Options --------- ASCII 0 Keyboard 0 Movement Numpad Keybinds 0 Fullscreen 2 Font 24/Smallcaps Map View 76x50 Tactical HUD 1 Map Filters NONE Filters NONE Steam 1 RUN: aaeec0ba-d4d8-44a9-8b17-20e9345d7fa1